bitfinex-derivatives/quotes_ETHF0:USTF0_20210110
["timestamp","ask_amount","ask_price","bid_price","bid_amount"]
[1610277241479,4.00959,1304.5,1304.4,2.81633822]
[1610277241680,5.60779,1304.5,1304.4,2.81633822]
[1610277242080,5.60779,1304.5,1304.1,3.28562078]
[1610277242680,5.60779,1304.5,1304.2,3.2854302]
[1610277243281,5.60779,1304.5,1304.3,3.28499843]
[1610277244482,5.60779,1304.5,1304.2,3.28520929]
[1610277245484,5.60779,1304.5,1304.4,3.28463635]
[1610277246085,5.60779,1304.5,1303.8,3.75381414]
[1610277246485,1.5982,1304.5,1304.4,3.2844755]
[1610277246686,1.9205,1304.9,1303.1,6.04020388]
[1610277246687,1.9205,1304.9,1304.0,3.75332913]
[1610277246885,2.1317,1305.2,1304.0,3.75332913]
[1610277247086,5.6393,1306.3,1304.8,3.28397099]
[1610277247487,5.6393,1306.3,1305.2,2.81484849]
[1610277247686,5.6393,1306.3,1305.3,2.81467107]
[1610277248890,5.6393,1306.3,1305.4,2.81454449]
[1610277249290,5.6393,1306.3,1305.5,2.8142372]
[1610277249491,4.00959,1305.6,1305.5,2.8142372]
[1610277249691,4.00959,1305.6,1305.2,3.28303907]
[1610277249891,6.40769,1305.6,1305.3,3.28280711]
[1610277250291,6.40769,1305.6,1305.4,3.28251803]
[1610277250691,6.40769,1305.6,1305.5,3.28238245]
[1610277250892,6.40769,1305.6,1305.4,3.2824228]
[1610277251493,6.40769,1305.6,1305.5,3.28227885]
[1610277252493,6.40769,1305.6,1305.4,3.28286572]
[1610277252894,6.40769,1305.6,1305.3,3.28294565]
[1610277253093,6.40769,1305.6,1305.5,2.8141784]
[1610277253494,6.40769,1305.6,1305.4,2.81442594]
[1610277253695,6.40769,1305.6,1305.3,2.81444913]
[1610277254097,6.40769,1305.6,1305.4,2.81447732]
[1610277254495,6.40769,1305.6,1305.3,2.8145674]
[1610277254696,6.40769,1305.6,1304.9,3.28366197]
[1610277254897,6.40769,1305.6,1305.3,2.81445271]
[1610277255098,6.40769,1305.6,1305.4,2.81440483]
[1610277255698,6.40769,1305.6,1305.2,3.28293237]
[1610277256501,6.40769,1305.6,1305.3,3.28247808]
[1610277256701,6.40769,1305.6,1305.4,3.28243143]
[1610277257100,6.40769,1305.6,1305.2,3.28320707]
[1610277257501,2.3981,1305.6,1305.4,2.81422677]
[1610277257901,6.0074,1306.2,1305.4,2.81422677]
[1610277258502,6.0074,1306.2,1305.3,2.81456396]
[1610277258701,6.0074,1306.2,1302.8,30.0]
[1610277258702,7.9892,1306.2,1305.2,2.81480311]
[1610277259503,4.00959,1305.3,1305.2,2.81480311]
[1610277259703,4.00959,1305.3,1304.9,3.28387308]
[1610277259903,5.81959,1305.3,1304.9,3.28387308]
[1610277260104,5.81959,1305.3,1305.0,3.28362461]
[1610277260503,1.81,1305.3,1305.1,3.28328708]
[1610277260703,1.81,1305.3,1304.6,4.00959]
[1610277260704,1.81,1305.3,1304.7,3.7517779]
[1610277261308,1.81,1305.3,1304.8,3.75156016]
[1610277261508,1.81,1305.3,1305.2,4.00959]
[1610277263308,48.9609,1306.2,1305.2,4.00959]
[1610277263509,48.9609,1306.2,1305.7,4.00959]
[1610277263911,48.9609,1306.2,1304.6,5.84792851]
[1610277264111,48.9609,1306.2,1305.9,3.28137024]
[1610277264313,48.9609,1306.2,1305.8,3.28139517]
[1610277264711,48.9609,1306.2,1305.9,3.28125352]
[1610277265513,4.00959,1306.0,1305.9,3.28125352]
[1610277265712,4.00959,1306.0,1305.5,4.00959]
[1610277265713,4.00959,1306.0,1305.8,3.28154424]
[1610277266113,4.00959,1306.0,1305.7,3.28167842]
[1610277266715,4.00959,1306.0,1305.9,2.813467]
[1610277267117,4.00959,1306.0,1305.7,2.81362792]
[1610277267517,4.00959,1305.8,1305.6,2.8140772]
[1610277267919,5.68409,1305.8,1305.6,2.8140772]
[1610277268122,5.68409,1305.8,1305.4,2.81433735]
[1610277268518,5.68409,1305.8,1305.3,2.8148891]
[1610277268718,35.68409,1305.8,1305.1,2.81503811]
[1610277269120,6.0603,1305.7,1305.0,2.8151775]
[1610277269522,4.00959,1305.1,1305.0,2.8151775]
[1610277269720,6.33719,1305.1,1304.7,3.28427244]
[1610277270121,6.33719,1305.1,1304.8,3.2840522]
[1610277270522,6.33719,1305.1,1304.9,3.28373617]
[1610277270921,6.33719,1305.1,1305.0,3.28361056]
[1610277271923,6.33719,1305.1,1304.7,4.00959]
[1610277273527,6.33719,1305.1,1305.0,4.00959]
[1610277273724,2.3276,1305.1,1305.0,4.00959]
[1610277274727,10.1764,1305.8,1305.0,4.00959]
[1610277274926,10.1764,1305.8,1304.7,3.75190871]
[1610277275126,10.1764,1305.8,1305.7,2.8139886]
[1610277275526,14.18599,1305.8,1305.6,2.81416373]
[1610277275726,14.18599,1305.8,1305.5,2.81437731]
[1610277277626,4.00959,1305.6,1305.5,2.81437731]
[1610277278026,4.00959,1305.6,1305.3,3.28295508]
[1610277278627,4.00959,1305.6,1305.4,3.28285326]
[1610277279428,4.00959,1305.6,1305.3,3.28281891]
[1610277279629,10.1764,1305.8,1304.8,4.00959]
[1610277279630,4.00959,1305.4,1304.8,4.00959]
[1610277279828,5.72829,1305.4,1304.8,4.00959]
[1610277280029,5.72829,1305.4,1305.3,3.28299099]
[1610277280228,5.72829,1305.4,1305.2,3.28306387]
[1610277280629,5.72829,1305.4,1305.1,3.28335059]
[1610277280829,5.72829,1305.4,1305.0,3.28364782]
[1610277281229,5.72829,1305.4,1305.3,2.81465188]
[1610277281529,5.72829,1305.4,1305.2,2.81493061]
[1610277282233,5.72829,1305.4,1305.1,2.8150296]
[1610277283035,30.0,1305.3,1304.7,3.2842135]
[1610277283235,30.0,1305.3,1302.0,5.754]
[1610277283236,30.0,1305.3,1305.0,2.81536575]
[1610277283435,30.0,1305.3,1304.8,2.81559725]
[1610277283636,4.00959,1304.9,1304.8,2.81559725]
[1610277283837,6.51949,1304.9,1304.8,2.81559725]
[1610277284236,6.51949,1304.9,1304.7,2.81557275]
[1610277284438,6.51949,1304.9,1304.5,3.28465212]
[1610277284636,6.51949,1304.9,1303.8,3.75388814]
[1610277284836,6.51949,1304.9,1304.6,3.28448752]
[1610277285137,6.51949,1304.9,1304.7,3.2841041]
[1610277285540,6.51949,1304.9,1304.8,3.2840021]
[1610277285738,6.51949,1304.9,1304.4,4.00959]
[1610277286638,6.51949,1304.9,1304.8,3.2842187]
[1610277286839,6.51949,1304.9,1304.7,3.28429407]
[1610277289142,6.51949,1304.9,1304.8,3.28405874]
[1610277289342,6.51949,1304.9,1304.2,3.75312656]
[1610277289746,6.51949,1304.9,1304.7,4.00959]
[1610277289943,2.5099,1304.9,1304.7,4.00959]
[1610277290145,1.7187,1305.4,1304.7,4.00959]
[1610277290343,50.3525,1305.6,1304.7,4.00959]
[1610277290745,50.3525,1305.6,1305.2,3.28320234]
[1610277291544,50.3525,1305.6,1305.3,3.28272058]
[1610277292545,50.3525,1305.6,1305.4,3.28268154]
[1610277293647,4.00959,1305.5,1305.4,3.28268154]
[1610277293847,5.98779,1305.5,1305.4,3.28268154]
[1610277294047,5.98779,1305.5,1305.3,3.28274752]
[1610277294647,5.98779,1305.5,1305.1,3.28308136]
[1610277295250,5.98779,1305.5,1305.4,2.81443833]
[1610277295648,5.98779,1305.5,1305.3,2.8146303]
[1610277295849,5.98779,1305.5,1305.2,2.81503032]
[1610277296250,5.98779,1305.5,1305.0,2.81531446]
[1610277297149,5.98779,1305.5,1304.9,2.81555256]
[1610277297650,4.00959,1305.0,1304.9,2.81555256]
[1610277298051,5.97879,1305.0,1304.9,2.81555256]
[1610277299051,5.97879,1305.0,1304.6,3.28487194]
[1610277299651,1.9692,1305.0,1304.7,3.28488206]
[1610277300051,1.9692,1305.0,1304.9,2.81578375]
[1610277300651,1.9692,1305.0,1304.7,2.81610775]
[1610277301252,1.9692,1305.0,1304.6,2.81631786]
[1610277301752,4.00959,1304.7,1304.6,2.81631786]
[1610277301952,6.40029,1304.7,1304.6,2.81631786]
[1610277302553,6.40029,1304.7,1304.5,2.81650554]
[1610277303154,6.40029,1304.7,1304.4,2.8166604]
[1610277303453,6.40029,1304.7,1304.3,2.81683576]
[1610277303653,4.00959,1304.4,1304.3,2.81683576]
[1610277303854,5.85279,1304.4,1304.3,2.81683576]
[1610277304054,5.85279,1304.4,1304.0,3.28626014]
[1610277304855,5.85279,1304.4,1304.3,2.81686731]
[1610277306556,35.85279,1304.4,1304.3,2.81686731]
[1610277306758,35.85279,1304.4,1304.2,2.81735583]
[1610277306959,35.85279,1304.4,1304.1,2.8174703]
[1610277307362,35.85279,1304.4,1304.0,2.81763616]
[1610277307764,4.00959,1304.1,1303.9,2.81765752]
[1610277307963,30.0,1304.0,1303.8,2.81829522]
[1610277308364,31.5464,1304.0,1303.1,3.28857557]
[1610277308764,31.5464,1304.0,1302.9,3.28914273]
[1610277308964,1.5464,1304.0,1302.6,3.28931313]
[1610277309362,1.5464,1304.0,1302.4,16.12407862]
[1610277309363,1.5464,1304.0,1302.8,3.28901962]
[1610277309764,4.00959,1302.9,1302.4,16.12407862]
[1610277309963,5.83179,1302.9,1302.4,16.12407862]
[1610277310363,5.83179,1302.9,1302.4,19.88282427]
[1610277311564,5.83179,1302.9,1302.5,3.75863795]
[1610277311764,5.83179,1302.9,1302.8,4.00959]
[1610277311964,5.83179,1302.9,1302.5,3.75863795]
[1610277312166,5.83179,1302.9,1302.6,3.75832656]
[1610277312964,5.83179,1302.9,1302.5,3.75829745]
[1610277313166,5.83179,1302.9,1302.4,19.88276262]
[1610277313570,5.83179,1302.9,1302.4,16.12407862]
[1610277313766,4.00959,1302.5,1302.4,16.12407862]
[1610277313969,6.37289,1302.5,1302.4,16.12407862]
[1610277315370,2.3633,1302.5,1302.4,16.12407862]
[1610277315770,2.3633,1302.5,1302.4,20.13366862]
[1610277316072,4.00959,1302.7,1302.4,16.12407862]
[1610277316670,4.00959,1302.7,1302.5,3.75830496]
[1610277316870,4.00959,1302.7,1302.4,19.88244848]
[1610277317272,4.00959,1302.7,1302.4,16.12407862]
[1610277317672,4.00959,1302.5,1302.4,16.12407862]
[1610277322480,2.3399,1302.6,1302.4,16.12407862]
[1610277322878,52.9677,1303.9,1302.4,19.88234138]
[1610277323078,58.6889,1303.9,1302.4,19.88234138]
[1610277323279,58.6889,1303.9,1302.5,3.75817928]
[1610277323679,58.6889,1303.9,1303.6,2.81840361]
[1610277324480,58.6889,1303.9,1302.5,3.75800807]
[1610277324481,58.6889,1303.9,1303.5,2.81865288]
[1610277325279,58.6889,1303.9,1303.4,2.81874959]
[1610277325479,43.0524,1303.6,1303.4,2.81874959]
[1610277325780,4.00959,1303.5,1303.3,2.81891132]
[1610277327183,4.00959,1303.5,1303.2,2.81904454]
[1610277327783,4.00959,1303.3,1303.2,2.81904454]
[1610277328182,6.16169,1303.3,1303.2,2.81904454]
[1610277328986,6.16169,1303.3,1302.9,3.2887108]
[1610277329185,6.16169,1303.3,1303.0,3.28852838]
[1610277329687,4.00959,1303.1,1303.0,3.28852838]
[1610277329888,4.00959,1303.1,1302.9,3.28884831]
[1610277330287,4.00959,1303.1,1302.4,16.12407862]
[1610277330288,4.00959,1303.1,1302.7,3.28923554]
[1610277330689,4.00959,1303.1,1303.0,2.81951918]
[1610277330888,4.00959,1303.1,1302.9,2.81966959]
[1610277331389,4.00959,1303.1,1302.8,2.81971898]
[1610277331592,4.00959,1303.1,1302.9,2.81966122]
[1610277332190,4.00959,1303.1,1302.8,2.81992353]
[1610277332993,34.00959,1303.1,1302.6,2.82049817]
[1610277333392,34.00959,1303.1,1302.4,18.94477559]
[1610277333794,4.00959,1302.5,1302.4,18.94477559]
[1610277333993,4.00959,1302.5,1302.4,16.12407862]
[1610277334193,6.30759,1302.5,1302.4,16.12407862]
[1610277334594,6.30759,1302.5,1302.4,18.94482519]
[1610277335592,6.30759,1302.5,1302.4,16.12407862]
[1610277336194,6.30759,1302.5,1302.4,18.94487581]
[1610277336595,6.30759,1302.5,1302.4,16.12407862]
[1610277337397,1.77979,1302.5,1302.4,19.41432006]
[1610277337796,5.78938,1302.5,1302.4,19.41432006]
[1610277338196,5.78938,1302.5,1302.4,16.12407862]
[1610277338697,1.77979,1302.5,1302.4,16.12407862]
[1610277339098,64.2715,1302.6,1302.4,16.12407862]
[1610277339899,64.2715,1302.6,1302.5,4.00959]
[1610277340300,64.2715,1302.6,1302.5,7.76808322]
[1610277341305,64.2715,1302.6,1302.5,4.00959]
[1610277341602,64.2715,1302.6,1302.5,5.86729]
[1610277343205,64.2715,1302.6,1302.5,35.86729]
[1610277343605,64.2715,1302.6,1302.5,40.0931978]
[1610277343806,64.2715,1302.6,1302.5,35.86729]
[1610277344705,4.00959,1304.2,1302.5,35.86729]
[1610277344905,4.00959,1304.2,1302.6,5.0]
[1610277345105,5.5502,1305.4,1302.7,30.0]
[1610277345505,5.5502,1305.4,1304.6,2.81630221]
[1610277345706,53.7899,1305.8,1304.7,2.81627756]
[1610277345905,4.00959,1304.8,1304.7,2.81627756]
[1610277346106,6.36139,1304.8,1304.7,2.81627756]
[1610277346707,2.3518,1304.8,1304.7,2.81627756]
[1610277347110,2.3518,1304.8,1304.4,3.28516684]
[1610277347308,2.3518,1304.8,1304.5,3.28512196]
[1610277347708,2.3518,1304.8,1304.6,3.2848972]
[1610277347909,4.00959,1304.7,1304.6,7.2944872]
[1610277348510,2.3518,1304.8,1304.6,7.2944872]
[1610277348712,2.3518,1304.8,1304.6,3.2848972]
[1610277348910,2.3518,1304.8,1304.7,3.28483284]
[1610277349312,2.3518,1304.8,1304.6,3.28504015]
[1610277349513,2.3518,1304.8,1304.0,3.75410064]
[1610277349712,2.3518,1304.8,1303.7,3.75473175]
[1610277349912,2.3518,1304.8,1303.7,7.76432175]
[1610277350112,2.3518,1304.8,1303.7,4.00959]
[1610277351115,2.3518,1304.8,1303.7,7.76400603]
[1610277351312,2.0992,1304.8,1303.7,7.76400603]
[1610277351515,2.0992,1304.8,1303.8,3.75420933]
[1610277351714,2.0992,1304.8,1303.9,3.75400826]
[1610277351914,2.0992,1304.8,1304.7,4.00959]
[1610277353115,53.7899,1305.8,1304.7,4.00959]
[1610277353916,53.7899,1305.8,1305.7,4.00959]
[1610277354122,4.00959,1306.2,1305.7,4.00959]
[1610277354515,6.0073,1307.4,1305.7,4.00959]
[1610277355517,35.7533,1308.9,1305.7,4.00959]
[1610277355917,6.1293,1308.8,1306.7,4.00959]
[1610277356117,8.6264,1308.8,1306.7,4.00959]
[1610277356917,8.6264,1308.8,1305.7,3.74913846]
[1610277357117,8.6264,1308.8,1305.8,3.74911927]
[1610277357318,38.6264,1308.8,1305.8,3.74911927]
[1610277357518,38.6264,1308.8,1305.6,3.74926993]
[1610277357918,4.00959,1306.6,1306.3,4.00959]
[1610277358120,5.59929,1306.6,1306.3,4.00959]
[1610277358618,5.59929,1306.6,1305.5,3.74940105]
[1610277359018,1.5897,1306.6,1305.5,3.74940105]
[1610277359218,1.5897,1306.6,1305.4,5.46312122]
[1610277359419,1.5897,1306.6,1305.5,3.74923393]
[1610277359819,1.5897,1306.6,1306.5,4.00959]
[1610277360819,1.5897,1306.6,1306.5,7.28950537]
[1610277361219,1.5897,1306.6,1306.5,4.00959]
[1610277362020,4.00959,1307.8,1306.5,4.00959]
[1610277362421,4.00959,1307.8,1306.8,3.27880003]
[1610277362822,4.00959,1307.8,1306.9,3.27873154]
[1610277363321,8.6264,1308.8,1307.0,3.27868173]
[1610277363723,8.6264,1308.8,1307.1,3.27831825]
[1610277363923,4.00959,1308.1,1307.9,4.00959]
[1610277364123,4.00959,1308.1,1306.5,3.74664943]
[1610277364124,6.18839,1308.1,1307.2,3.27832332]
[1610277365126,6.18839,1308.1,1307.1,3.27853057]
[1610277365327,6.18839,1308.1,1307.0,3.27870647]
[1610277365728,6.18839,1308.1,1306.9,3.27902617]
[1610277365928,2.1788,1308.1,1307.2,4.00959]
[1610277367929,2.1788,1308.1,1308.0,4.00959]
[1610277369131,2.4971,1308.8,1308.0,4.00959]
[1610277369331,2.4971,1308.8,1307.6,3.2777386]
[1610277369531,5.8553,1309.4,1307.6,3.2777386]
[1610277369733,5.8553,1309.4,1307.5,3.27830421]
[1610277369934,4.00959,1307.7,1307.4,7.28771456]
[1610277370137,6.51019,1307.7,1307.4,7.28771456]
[1610277370334,6.51019,1307.7,1307.4,4.00959]
[1610277370735,6.51019,1307.7,1307.2,3.27836098]
[1610277370936,6.51019,1307.7,1307.0,3.27873673]
[1610277371740,2.5006,1307.7,1306.9,3.27898633]
[1610277371941,2.5006,1307.7,1307.6,4.00959]
[1610277374340,4.00959,1308.5,1307.6,4.00959]
[1610277375940,4.00959,1309.0,1308.4,4.00959]
[1610277376342,5.78279,1309.0,1307.6,3.27751022]
[1610277378045,5.78279,1309.0,1308.8,4.00959]
[1610277378848,5.78279,1309.0,1307.7,3.27738777]
[1610277379047,5.78279,1309.0,1307.8,3.27731228]
[1610277379548,5.78279,1309.0,1307.7,3.2773782]
[1610277379747,5.78279,1309.0,1307.6,3.27756475]
[1610277379947,4.00959,1308.2,1307.9,4.00959]
[1610277380351,2.4004,1308.2,1307.9,4.00959]
[1610277381948,2.4004,1308.2,1308.1,4.00959]
[1610277383552,2.4004,1308.2,1308.1,7.28637925]
[1610277384558,2.4004,1308.2,1308.1,4.00959]
[1610277385153,2.4004,1308.2,1308.1,7.28621409]
[1610277385354,5.78279,1309.0,1308.1,7.28621409]
[1610277385554,5.78279,1309.0,1308.1,4.00959]
[1610277385756,19.78279,1309.0,1308.1,4.00959]
[1610277385955,4.00959,1308.5,1308.1,4.00959]
[1610277386353,5.82429,1308.5,1308.1,4.00959]
[1610277389058,5.82429,1308.5,1307.7,3.27733781]
[1610277389259,5.82429,1308.5,1307.6,3.27756417]
[1610277389660,5.82429,1308.5,1307.7,3.27750025]
[1610277390061,5.82429,1308.5,1308.4,4.00959]
[1610277390662,1.8147,1308.5,1308.4,4.00959]
[1610277391061,15.7732,1309.0,1308.5,3.1853]
[1610277391961,19.78279,1309.0,1308.8,4.00959]
[1610277394064,15.7732,1309.0,1308.8,4.00959]
[1610277394866,15.7732,1309.0,1308.5,3.1853]
[1610277396068,4.00959,1308.6,1308.5,3.1853]
[1610277396266,5.89929,1308.6,1308.5,3.1853]
[1610277397670,5.89929,1308.6,1307.5,3.2779409]
[1610277397870,5.89929,1308.6,1307.4,3.27826722]
[1610277398072,6.51679,1307.5,1307.3,7.28800839]
[1610277398472,6.51679,1307.5,1307.3,4.00959]
[1610277398674,6.51679,1307.5,1307.2,3.27859428]
[1610277399174,6.51679,1307.5,1307.1,3.27878117]
[1610277399574,6.51679,1307.5,1307.2,3.27870126]
[1610277400075,6.51679,1307.5,1307.4,4.00959]
[1610277400275,2.5072,1307.5,1307.4,4.00959]
[1610277401775,1.8897,1308.6,1307.4,4.00959]
[1610277401976,4.00959,1308.5,1308.4,4.00959]
[1610277402176,6.10949,1308.5,1308.4,4.00959]
[1610277402980,2.0999,1308.5,1308.4,4.00959]
[1610277407187,19.78279,1309.0,1308.4,4.00959]
[1610277407386,2.0152,1308.5,1308.4,4.00959]
[1610277408188,2.0152,1308.5,1307.5,3.74471535]
[1610277408587,2.0152,1308.5,1307.4,2.2619]
[1610277409787,2.0152,1308.5,1307.3,3.74508263]
[1610277409987,2.0152,1308.5,1308.3,4.00959]
[1610277411189,2.0152,1308.5,1307.3,3.74508263]
[1610277411589,2.0152,1308.5,1307.2,6.1417306]
[1610277411989,2.0152,1308.5,1307.2,2.3965]
[1610277412189,4.00959,1308.0,1307.2,2.3965]
[1610277413390,1.9821,1308.2,1307.2,2.3965]
[1610277414192,1.9821,1308.2,1308.1,4.00959]
[1610277417294,2.0152,1308.5,1308.1,4.00959]
[1610277417492,4.00959,1308.7,1308.1,4.00959]
[1610277418094,4.00959,1308.7,1308.5,4.00959]
[1610277419497,4.00959,1308.7,1307.3,3.74496476]
[1610277419697,6.48459,1308.7,1307.3,3.74496476]
[1610277420095,4.00959,1308.1,1308.0,4.00959]
[1610277424801,2.0421,1308.2,1308.0,4.00959]
[1610277425806,2.475,1308.7,1308.0,4.00959]
[1610277426207,4.00959,1308.6,1308.3,4.00959]
[1610277426408,5.71009,1308.6,1308.3,4.00959]
[1610277428310,5.71009,1308.6,1308.5,4.00959]
[1610277429812,1.7005,1308.6,1308.5,4.00959]
[1610277431713,19.78279,1309.0,1308.5,4.00959]
[1610277432313,19.78279,1309.0,1308.8,4.00959]
[1610277438216,19.78279,1309.0,1308.6,4.00959]
[1610277440917,19.78279,1309.0,1307.4,3.74493768]
[1610277441117,19.78279,1309.0,1307.3,3.74515633]
[1610277441316,19.78279,1309.0,1306.9,1.8152]
[1610277441317,19.78279,1309.0,1307.2,3.74519953]
[1610277442319,4.00959,1308.5,1308.3,4.00959]
[1610277442522,5.81369,1308.5,1308.3,4.00959]
[1610277444722,1.8041,1308.5,1308.3,4.00959]
[1610277447625,15.7732,1309.0,1308.3,4.00959]
[1610277447823,1.5452,1308.5,1308.3,4.00959]
[1610277452928,1.8593,1308.5,1308.3,4.00959]
[1610277455435,1.8593,1308.5,1307.7,3.74403751]
[1610277456036,1.8593,1308.5,1307.5,3.74511299]
[1610277456235,4.00959,1308.2,1308.1,4.00959]
[1610277456635,6.12619,1308.2,1308.1,4.00959]
[1610277458138,2.1166,1308.2,1308.1,4.00959]
[1610277459840,1.8593,1308.5,1308.1,4.00959]
[1610277460041,1.8593,1308.5,1308.1,34.00959]
[1610277460440,15.7732,1309.0,1308.4,4.00959]
[1610277462345,15.7732,1309.0,1308.9,4.00959]
[1610277463848,15.7732,1309.0,1308.9,7.28481517]
[1610277467654,15.7732,1309.0,1308.9,4.00959]
[1610277471557,15.7732,1309.0,1308.9,7.28471329]
[1610277473159,15.7732,1309.0,1308.9,4.00959]
[1610277474468,19.78279,1309.0,1308.9,4.00959]
[1610277474867,15.7732,1309.0,1308.9,4.00959]
[1610277475671,15.7732,1309.0,1308.7,3.27557412]
[1610277476074,15.7732,1309.0,1308.6,3.27567972]
[1610277476470,5.73849,1308.7,1308.6,3.27567972]
[1610277476771,1.7289,1308.7,1308.6,3.27567972]
[1610277477173,1.7289,1308.7,1308.5,3.27575132]
[1610277477370,1.7289,1308.7,1308.6,3.27555548]
[1610277477770,1.7289,1308.7,1308.4,4.00959]
[1610277478370,1.7289,1308.7,1308.6,4.00959]
[1610277479370,1.7289,1308.7,1308.6,3.27564802]
[1610277479770,1.7289,1308.7,1308.3,3.27600358]
[1610277480372,4.00959,1308.4,1308.3,3.27600358]
[1610277480574,5.67249,1308.4,1308.2,3.27640903]
[1610277481572,5.67249,1308.4,1308.1,3.27649778]
[1610277481973,5.67249,1308.4,1308.2,3.27649603]
[1610277482173,1.6629,1308.4,1308.2,3.27649603]
[1610277482374,1.6629,1308.4,1308.3,4.00959]
[1610277482975,1.6629,1308.4,1308.3,7.28585864]
[1610277483177,1.6629,1308.4,1308.3,4.00959]
[1610277485579,1.7289,1308.7,1308.3,4.00959]
[1610277485778,15.7732,1309.0,1308.3,4.00959]
[1610277485779,15.7732,1309.0,1308.3,34.00959]
[1610277486082,15.7732,1309.0,1308.9,3.27507901]
[1610277486381,15.7732,1309.0,1308.9,4.00959]
[1610277497996,15.7732,1309.0,1308.6,3.74189032]
[1610277498396,15.7732,1309.0,1308.8,4.00959]
[1610277499599,15.7732,1309.0,1308.9,3.27494639]
[1610277499997,15.7732,1309.0,1308.8,3.27502213]
[1610277500497,4.00959,1308.9,1308.8,3.27502213]
[1610277501297,4.00959,1308.9,1308.7,3.27506637]
[1610277501897,4.00959,1308.9,1308.8,3.27517041]
[1610277502198,4.00959,1308.9,1308.7,3.27523465]
[1610277502598,4.00959,1308.9,1308.4,4.00959]
[1610277502599,4.00959,1308.9,1308.8,3.27524916]
[1610277502800,4.00959,1308.9,1308.7,3.27519924]
[1610277503199,4.00959,1308.9,1308.8,3.27518247]
[1610277503399,4.00959,1308.9,1308.7,3.27521999]
[1610277504999,4.00959,1308.9,1308.6,3.27555957]
[1610277505300,4.00959,1308.9,1308.4,7.28537653]
[1610277505900,4.00959,1308.9,1308.5,3.27561781]
[1610277506500,4.00959,1308.6,1308.5,3.27561781]
[1610277506700,6.26029,1308.6,1308.4,4.00959]
[1610277506899,2.2507,1308.6,1308.4,4.00959]
[1610277510206,2.2507,1308.6,1308.5,3.27537022]
[1610277510507,6.26029,1308.6,1308.5,3.27537022]
[1610277510908,6.26029,1308.6,1308.4,7.28513985]
[1610277511207,6.26029,1308.6,1308.5,3.27552494]
[1610277511607,6.26029,1308.6,1308.4,7.28510691]
[1610277511807,6.26029,1308.6,1308.4,3.27551691]
[1610277512007,6.26029,1308.6,1308.3,3.2758087]
[1610277512607,4.00959,1308.4,1308.3,3.2758087]
[1610277513107,4.00959,1308.4,1308.2,3.27583471]
[1610277513308,4.00959,1308.4,1308.3,3.275841]
[1610277513709,4.00959,1308.4,1308.2,3.27584965]
[1610277514309,4.00959,1308.4,1308.3,3.27586918]
[1610277514610,4.00959,1308.4,1308.2,3.27589355]
[1610277515010,4.00959,1308.4,1308.3,3.27592687]
[1610277515709,4.00959,1308.4,1308.2,3.27588701]
[1610277516511,4.00959,1308.4,1307.8,3.27702065]
[1610277516711,4.00959,1307.9,1307.7,3.27764756]
[1610277517111,5.87509,1307.9,1307.5,3.27768645]
[1610277517513,5.87509,1307.9,1307.4,3.27823886]
[1610277517912,5.87509,1307.9,1307.2,3.27849164]
[1610277518111,5.87509,1307.9,1306.5,3.74684758]
[1610277518112,5.87509,1307.9,1307.1,3.2786443]
[1610277518713,4.00959,1307.2,1307.1,3.2786443]
[1610277519113,5.75339,1307.2,1306.3,3.74772317]
[1610277519512,5.75339,1307.2,1306.2,3.74794753]
[1610277519712,5.75339,1307.2,1304.0,5.5458]
[1610277519713,5.75339,1307.2,1306.0,3.74871648]
[1610277520412,5.75339,1307.2,1305.9,3.74923339]
[1610277520612,4.00959,1306.0,1305.9,3.74923339]
[1610277520813,4.00959,1306.0,1305.8,3.74930293]
[1610277521012,6.14749,1306.0,1305.8,3.74930293]
[1610277521212,6.14749,1306.0,1305.7,3.74955261]
[1610277521412,6.14749,1306.0,1305.6,3.7495477]
[1610277521712,6.14749,1306.0,1305.7,3.74977979]
[1610277522115,6.14749,1306.0,1305.6,3.74991334]
[1610277522515,6.14749,1306.0,1304.3,1.9635]
[1610277522516,6.14749,1306.0,1305.5,3.7500244]
[1610277522717,4.00959,1305.6,1305.4,3.7501034]
[1610277522915,6.49999,1305.6,1305.4,3.7501034]
[1610277523119,6.49999,1305.6,1305.3,3.75027359]
[1610277523720,6.49999,1305.6,1305.1,3.75076797]
[1610277524520,6.49999,1305.6,1305.2,3.75077428]
[1610277524719,6.49999,1305.6,1305.5,4.00959]
[1610277524720,2.4904,1305.6,1305.5,4.00959]
[1610277525519,2.1379,1306.0,1305.5,4.00959]
[1610277525719,63.5693,1305.7,1305.5,4.00959]
[1610277527322,63.5693,1305.7,1305.5,8.22675107]
[1610277528422,63.5693,1305.7,1305.5,4.00959]
[1610277528622,63.5693,1305.7,1305.6,4.21641729]
[1610277529022,63.5693,1305.7,1305.5,8.22652188]
[1610277529422,63.5693,1305.7,1305.5,4.00959]
[1610277530022,63.5693,1305.7,1305.0,6.21303541]
[1610277530223,65.3285,1305.7,1305.4,3.75002014]
[1610277530621,65.3285,1305.7,1305.6,4.00959]
[1610277532628,63.5693,1305.7,1305.6,4.00959]
[1610277532828,2.1742,1306.3,1305.6,4.00959]
[1610277533029,57.0982,1306.9,1305.6,4.00959]
[1610277533228,57.0982,1306.9,1305.7,4.2163937]
[1610277533628,57.0982,1306.9,1306.8,3.2797617]
[1610277533828,57.0982,1306.9,1306.7,3.27997998]
[1610277534027,59.336,1306.9,1306.7,3.27997998]
[1610277534731,4.00959,1306.8,1306.7,3.27997998]
[1610277534931,4.00959,1306.8,1306.1,3.74814351]
[1610277535330,4.00959,1306.8,1306.2,3.74860676]
[1610277535731,4.00959,1306.8,1306.7,3.28009378]
[1610277536333,4.00959,1306.8,1306.6,3.28033458]
[1610277536734,4.00959,1306.8,1305.2,2.0279]
[1610277536735,4.00959,1306.8,1306.5,3.28054711]
[1610277537135,4.00959,1306.8,1306.4,3.28082218]
[1610277537334,4.00959,1306.8,1306.3,3.28106007]
[1610277537736,4.00959,1306.8,1306.2,3.28129727]
[1610277538337,4.00959,1306.8,1306.1,3.28135443]
[1610277538735,4.00959,1306.2,1306.1,3.28135443]